fUST/lending_fUST_20240218
["ID","MTS","AMOUNT","RATE_DAILY","PERIOD"]
[314349043,1708213842071,-500.0,0.00028219,2]
[314349044,1708213842080,-764.56,0.00028219,2]
[314349045,1708213842089,-2339.91,0.00028219,2]
[314349046,1708213842098,-500.0,0.00028219,2]
[314349047,1708213842107,-2424.82,0.00028219,2]
[314349048,1708213842116,-814.05,0.00028219,2]
[314349049,1708213842125,-500.0,0.00028219,2]
[314349050,1708213842135,-151.0,0.00028219,2]
[314349051,1708213842144,-500.0,0.00028219,2]
[314349052,1708213842153,-4438.86,0.00028219,2]
[314349053,1708213842162,-500.0,0.00028219,2]
[314349054,1708213842172,-851.8,0.00028219,2]
[314349055,1708213842181,-500.0,0.00028219,2]
[314349056,1708213842190,-500.0,0.00028219,2]
[314349057,1708213842200,-500.0,0.00028219,2]
[314349058,1708213842209,-500.0,0.00028219,2]
[314349059,1708213842218,-500.0,0.00028219,2]
[314349060,1708213842227,-635.23390049,0.00028219,2]
[314349061,1708213842237,-662.68,0.00028219,2]
[314349062,1708213842246,-542.42,0.00028219,2]
[314349063,1708213842256,-500.0,0.00028219,2]
[314349064,1708213842265,-500.0,0.00028219,2]
[314349065,1708213842274,-517.07370122,0.00028219,2]
[314349066,1708213842284,-500.0,0.00028219,2]
[314349067,1708213842295,-500.0,0.00028219,2]
[314349068,1708213842304,-2884.08,0.00028219,2]
[314349069,1708213842313,-3897.83,0.00028219,2]
[314349070,1708213842323,-273.813915,0.00028486,2]
[314349071,1708213842333,-223.913519,0.00028486,2]
[314349072,1708213842342,-195.840349,0.00028486,2]
[314349073,1708213842351,-273.813915,0.00028486,2]
[314349075,1708213842360,-273.813916,0.00028486,2]
[314349076,1708213842368,-321.611729,0.00028486,2]
[314349077,1708213842377,-223.913518,0.00028486,2]
[314349078,1708213842386,-759.54,0.00028493,2]
[314349079,1708213842396,-500.0,0.00028493,2]
[314349080,1708213842404,-500.0,0.00028493,2]
[314349081,1708213842413,-500.0,0.00028493,2]
[314349082,1708213842422,-500.28,0.00028493,2]
[314349084,1708213842431,-500.0,0.00028493,2]
[314349086,1708213842439,-500.0,0.00028493,2]
[314349088,1708213842448,-645.5992516,0.00028493,2]
[314349090,1708213842456,-614.45,0.00028493,2]
[314349092,1708213842465,-580.12,0.00028493,2]
[314349094,1708213842475,-500.0,0.00028493,2]
[314349095,1708213842484,-500.0,0.00028493,2]
[314349097,1708213842493,-514.991387,0.00028493,2]
[314349099,1708213842502,-514.991387,0.00028493,2]
[314349102,1708213842512,-500.0,0.00028493,2]
[314349103,1708213842521,-500.0,0.00028493,2]
[314349106,1708213842530,-500.0,0.00028493,2]
[314349109,1708213842539,-2388.3,0.00028493,2]
[314349110,1708213842549,-500.0,0.00028493,2]
[314349113,1708213842558,-500.0,0.00028493,2]
[314349115,1708213842567,-500.0,0.00028493,2]
[314349117,1708213842576,-500.0,0.00028493,2]
[314349118,1708213842585,-500.0,0.00028493,2]
[314349120,1708213842595,-208.973982,0.00028493,2]
[314349123,1708213842604,-208.973982,0.00028493,2]
[314349124,1708213842613,-500.0,0.00028493,2]
[314349126,1708213842623,-500.0,0.00028493,2]
[314349128,1708213842632,-4384.1,0.00028493,2]
[314349130,1708213842641,-500.0,0.00028493,2]
[314349133,1708213842651,-500.0,0.00028493,2]
[314349134,1708213842660,-500.0,0.00028493,2]
[314349136,1708213842669,-764.56,0.00028493,2]
[314349138,1708213842679,-2339.91,0.00028493,2]
[314349139,1708213842688,-500.0,0.00028493,2]
[314349141,1708213842698,-2424.82,0.00028493,2]
[314349143,1708213842708,-814.05,0.00028493,2]
[314349145,1708213842717,-500.0,0.00028493,2]
[314349146,1708213842726,-500.0,0.00028493,2]
[314349147,1708213842735,-4438.86,0.00028493,2]
[314349148,1708213842745,-500.0,0.00028493,2]
[314349149,1708213842754,-851.8,0.00028493,2]
[314349151,1708213842762,-500.0,0.00028493,2]
[314349153,1708213842771,-500.0,0.00028493,2]
[314349154,1708213842780,-500.0,0.00028493,2]
[314349155,1708213842790,-500.0,0.00028493,2]
[314349156,1708213842801,-500.0,0.00028493,2]
[314349157,1708213842810,-662.68,0.00028493,2]
[314349158,1708213842820,-542.42,0.00028493,2]
[314349159,1708213842829,-500.0,0.00028493,2]
[314349160,1708213842838,-500.0,0.00028493,2]
[314349161,1708213842847,-500.0,0.00028493,2]
[314349162,1708213842856,-584.0359124,0.00028493,2]
[314349163,1708213842865,-2884.08,0.00028493,2]
[314349164,1708213842875,-3897.83,0.00028493,2]
[314349165,1708213842885,-185.972015,0.00028603,2]
[314349166,1708213842894,-185.972015,0.00028603,2]
[314349167,1708213842903,-155.09150399,0.00028756,2]
[314349168,1708213842912,-1416.26,0.00028756,3]
[314349169,1708213842921,-160.24275126,0.00028767,3]
[314349170,1708213842930,-759.54,0.00028767,2]
[314349171,1708213842939,-500.0,0.00028767,2]
[314349172,1708213842948,-500.0,0.00028767,2]
[314349173,1708213842957,-500.0,0.00028767,2]
[314349174,1708213842967,-500.28,0.00028767,2]
[314349175,1708213842976,-223.7581717,0.00028767,2]
[314349176,1708213842985,-151.0,0.00028767,2]
[314349177,1708213842995,-178.52227,0.00028767,2]
[314349178,1708213843004,-155.0,0.00028767,2]
[314349179,1708213843013,-614.45,0.00028767,2]
[314349180,1708213843023,-580.12,0.00028767,2]
[314349181,1708213843032,-500.0,0.00028767,2]
[314349182,1708213843041,-500.0,0.00028767,2]
[314349183,1708213843050,-500.0,0.00028767,2]
[314349184,1708213843059,-500.0,0.00028767,2]
[314349185,1708213843071,-500.0,0.00028767,2]
[314349186,1708213843080,-2388.3,0.00028767,2]
[314349187,1708213843089,-219.0763038,0.00028767,2]
[314349188,1708213843098,-500.0,0.00028767,2]
[314349189,1708213843108,-500.0,0.00028767,2]
[314349190,1708213843117,-500.0,0.00028767,2]
[314349191,1708213843127,-500.0,0.00028767,2]
[314349192,1708213843136,-500.0,0.00028767,2]
[314349193,1708213843145,-500.0,0.00028767,2]
[314349194,1708213843154,-4384.1,0.00028767,2]
[314349195,1708213843164,-500.0,0.00028767,2]
[314349196,1708213843173,-500.0,0.00028767,2]
[314349197,1708213843181,-500.0,0.00028767,2]
[314349198,1708213843258,-764.56,0.00028767,2]
[314349199,1708213843267,-2339.91,0.00028767,2]
[314349200,1708213843276,-579.769935,0.00028767,2]
[314349201,1708213843285,-2424.82,0.00028767,2]
[314349202,1708213843294,-814.05,0.00028767,2]
[314349203,1708213843304,-500.0,0.00028767,2]
[314349204,1708213843313,-151.0,0.00028767,2]
[314349205,1708213843322,-500.0,0.00028767,2]
[314349206,1708213843331,-4438.86,0.00028767,2]
[314349207,1708213843340,-500.0,0.00028767,2]
[314349208,1708213843349,-851.8,0.00028767,2]
[314349209,1708213843358,-500.0,0.00028767,2]
[314349210,1708213843367,-500.0,0.00028767,2]
[314349211,1708213843376,-500.0,0.00028767,2]
[314349212,1708213843385,-500.0,0.00028767,2]
[314349213,1708213843394,-500.0,0.00028767,2]
[314349214,1708213843403,-662.68,0.00028767,2]
[314349215,1708213843412,-542.42,0.00028767,2]
[314349216,1708213843421,-500.0,0.00028767,2]
[314349217,1708213843430,-500.0,0.00028767,2]
[314349218,1708213843439,-500.0,0.00028767,2]
[314349219,1708213843448,-2884.08,0.00028767,2]
[314349220,1708213843456,-3897.83,0.00028767,2]
[314349221,1708213843465,-273.813915,0.00028838,2]
[314349222,1708213843474,-223.913519,0.00028838,2]
[314349223,1708213843483,-163.954602,0.00028838,2]
[314349224,1708213843492,-195.840349,0.00028838,2]
[314349225,1708213843501,-273.813915,0.00028838,2]
[314349226,1708213843510,-273.813916,0.00028838,2]
[314349227,1708213843519,-321.611729,0.00028838,2]
[314349228,1708213843529,-223.913518,0.00028838,2]
[314349229,1708213843538,-759.54,0.00029041,2]
[314349230,1708213843547,-500.0,0.00029041,2]
[314349231,1708213843556,-493.00244291,0.00029041,2]
[314349232,1708213843565,-151.0,0.00029041,2]
[314349233,1708213843575,-151.0,0.00029041,2]
[314349234,1708213843584,-500.0,0.00029041,2]
[314349235,1708213843593,-500.28,0.00029041,2]
[314349236,1708213843602,-614.45,0.00029041,2]
[314349237,1708213843611,-580.12,0.00029041,2]
[314349238,1708213843620,-500.0,0.00029041,2]
[314349239,1708213843629,-500.0,0.00029041,2]
[314349240,1708213843638,-514.991387,0.00029041,2]
[314349241,1708213843646,-514.991387,0.00029041,2]
[314349242,1708213843655,-500.0,0.00029041,2]
[314349243,1708213843665,-500.0,0.00029041,2]
[314349244,1708213843674,-500.0,0.00029041,2]
[314349245,1708213843683,-2388.3,0.00029041,2]
[314349246,1708213843692,-500.0,0.00029041,2]
[314349247,1708213843701,-500.0,0.00029041,2]
[314349248,1708213843711,-500.0,0.00029041,2]
[314349249,1708213843720,-208.973982,0.00029041,2]
[314349250,1708213843729,-208.973982,0.00029041,2]
[314349251,1708213843737,-500.0,0.00029041,2]
[314349252,1708213843746,-500.0,0.00029041,2]
[314349253,1708213843755,-4384.1,0.00029041,2]
[314349254,1708213843764,-500.0,0.00029041,2]
[314349255,1708213843773,-437.865938,0.00029041,2]
[314349256,1708213843781,-500.0,0.00029041,2]
[314349257,1708213843792,-764.56,0.00029041,2]
[314349258,1708213843801,-2339.91,0.00029041,2]
[314349259,1708213843811,-2424.82,0.00029041,2]
[314349260,1708213843820,-814.05,0.00029041,2]
[314349261,1708213843829,-500.0,0.00029041,2]
[314349262,1708213843839,-4438.86,0.00029041,2]
[314349263,1708213843848,-500.0,0.00029041,2]
[314349264,1708213843857,-851.8,0.00029041,2]
[314349265,1708213843865,-500.0,0.00029041,2]
[314349266,1708213843874,-500.0,0.00029041,2]
[314349267,1708213843884,-500.0,0.00029041,2]
[314349268,1708213843893,-500.0,0.00029041,2]
[314349269,1708213843902,-500.0,0.00029041,2]
[314349270,1708213843912,-662.68,0.00029041,2]
[314349271,1708213843920,-542.42,0.00029041,2]
[314349272,1708213843929,-500.0,0.00029041,2]
[314349273,1708213843938,-500.0,0.00029041,2]
[314349274,1708213843948,-2884.08,0.00029041,2]
[314349275,1708213843957,-3897.83,0.00029041,2]
[314349276,1708213843967,-185.972015,0.00029072,2]
[314349277,1708213843975,-185.972015,0.00029072,2]
[314349278,1708213843984,-273.813915,0.00029189,2]
[314349279,1708213843993,-223.913519,0.00029189,2]
[314349280,1708213844002,-195.840349,0.00029189,2]
[314349281,1708213844011,-273.813915,0.00029189,2]
[314349282,1708213844020,-273.813916,0.00029189,2]
[314349283,1708213844029,-321.611729,0.00029189,2]
[314349284,1708213844039,-223.913518,0.00029189,2]
[314349285,1708213844048,-759.54,0.00029315,2]
[314349286,1708213844057,-500.0,0.00029315,2]
[314349287,1708213844066,-500.28,0.00029315,2]
[314349288,1708213844075,-151.0,0.00029315,2]
[314349289,1708213844084,-614.45,0.00029315,2]
[314349290,1708213844094,-580.12,0.00029315,2]
[314349291,1708213844103,-183.11041211,0.00029315,2]
[314349292,1708213844112,-500.0,0.00029315,2]
[314349293,1708213844122,-500.0,0.00029315,2]
[314349294,1708213844131,-500.0,0.00029315,2]
[314349295,1708213844140,-2388.3,0.00029315,2]
[314349296,1708213844149,-500.0,0.00029315,2]
[314349297,1708213844158,-500.0,0.00029315,2]
[314349298,1708213844168,-572.43,0.00029315,2]
[314349299,1708213844177,-500.0,0.00029315,2]
[314349300,1708213844186,-500.0,0.00029315,2]
[314349301,1708213844195,-4384.1,0.00029315,2]
[314349302,1708213844204,-500.0,0.00029315,2]
[314349303,1708213844214,-500.0,0.00029315,2]
[314349304,1708213844223,-764.56,0.00029315,2]
[314349305,1708213844232,-2339.91,0.00029315,2]
[314349306,1708213844241,-2424.82,0.00029315,2]
[314349307,1708213844250,-814.05,0.00029315,2]
[314349308,1708213844259,-151.0,0.00029315,2]
[314349309,1708213844268,-4438.86,0.00029315,2]
[314349310,1708213844277,-500.0,0.00029315,2]
[314349311,1708213844286,-851.8,0.00029315,2]
[314349312,1708213844296,-500.0,0.00029315,2]
[314349313,1708213844305,-500.0,0.00029315,2]
[314349314,1708213844314,-500.0,0.00029315,2]
[314349315,1708213844323,-500.0,0.00029315,2]
[314349316,1708213844332,-662.68,0.00029315,2]
[314349317,1708213844340,-542.42,0.00029315,2]
[314349318,1708213844349,-500.0,0.00029315,2]
[314349319,1708213844359,-500.0,0.00029315,2]
[314349320,1708213844368,-2884.08,0.00029315,2]
[314349321,1708213844376,-3897.83,0.00029315,2]
[314349322,1708213844385,-5000.0,0.00029498,5]
[314349323,1708213844394,-208.973982,0.00029498,2]
[314349324,1708213844403,-208.973982,0.00029498,2]
[314349325,1708213844412,-5000.0,0.00029498,5]
[314349326,1708213844420,-1000.0,0.000295,2]
[314349327,1708213844429,-273.813915,0.00029541,2]
[314349328,1708213844438,-223.913519,0.00029541,2]
[314349329,1708213844447,-194.933917,0.00029541,2]
[314349330,1708213844456,-163.954602,0.00029541,2]
[314349331,1708213844465,-195.840349,0.00029541,2]
[314349332,1708213844474,-273.813915,0.00029541,2]
[314349333,1708213844483,-273.813916,0.00029541,2]
[314349334,1708213844492,-321.611729,0.00029541,2]
[314349335,1708213844501,-223.913518,0.00029541,2]
[314349336,1708213844510,-185.972015,0.00029541,2]
[314349337,1708213844519,-185.972015,0.00029541,2]
[314349338,1708213844528,-759.54,0.00029589,2]
[314349339,1708213844537,-151.460735,0.00029589,2]
[314349340,1708213844546,-151.0,0.00029589,2]
[314349341,1708213844555,-500.28,0.00029589,2]
[314349342,1708213844564,-614.45,0.00029589,2]
[314349343,1708213844572,-580.12,0.00029589,2]
[314349344,1708213844581,-514.991387,0.00029589,2]
[314349345,1708213844590,-514.991387,0.00029589,2]
[314349346,1708213844599,-500.0,0.00029589,2]
[314349347,1708213844608,-500.0,0.00029589,2]
[314349348,1708213844617,-458.0464762,0.00029589,2]
[314349349,1708213844627,-2388.3,0.00029589,2]
[314349350,1708213844636,-500.0,0.00029589,2]
[314349351,1708213844645,-500.0,0.00029589,2]
[314349352,1708213844654,-500.0,0.00029589,2]
[314349353,1708213844663,-500.0,0.00029589,2]
[314349354,1708213844672,-4384.1,0.00029589,2]
[314349355,1708213844681,-500.0,0.00029589,2]
[314349356,1708213844690,-500.0,0.00029589,2]
[314349357,1708213844699,-764.56,0.00029589,2]
[314349358,1708213844708,-2339.91,0.00029589,2]
[314349359,1708213844717,-2424.82,0.00029589,2]
[314349360,1708213844727,-814.05,0.00029589,2]
[314349361,1708213844735,-4438.86,0.00029589,2]
[314349362,1708213844745,-500.0,0.00029589,2]
[314349363,1708213844754,-851.8,0.00029589,2]
[314349364,1708213844763,-500.0,0.00029589,2]
[314349365,1708213844772,-500.0,0.00029589,2]
[314349366,1708213844780,-500.0,0.00029589,2]
[314349367,1708213844849,-500.0,0.00029589,2]
[314349368,1708213844858,-662.68,0.00029589,2]
[314349369,1708213844868,-542.42,0.00029589,2]
[314349370,1708213844878,-500.0,0.00029589,2]
[314349371,1708213844887,-500.0,0.00029589,2]
[314349372,1708213844896,-2884.08,0.00029589,2]
[314349373,1708213844904,-3897.83,0.00029589,2]
[314349374,1708213844913,-155.12394705,0.00029598,2]
[314349375,1708213844922,-321.17151337,0.00029642,2]
[314349376,1708213844931,-166.65831569,0.00029749,4]
[314349377,1708213844942,-759.54,0.00029863,2]
[314349378,1708213844951,-500.28,0.00029863,2]
[314349379,1708213844959,-151.0,0.00029863,2]
[314349380,1708213844968,-614.45,0.00029863,2]
[314349381,1708213844977,-580.12,0.00029863,2]
[314349382,1708213844987,-500.0,0.00029863,2]
[314349383,1708213844996,-2388.3,0.00029863,2]
[314349384,1708213845005,-500.0,0.00029863,2]
[314349385,1708213845014,-500.0,0.00029863,2]
[314349386,1708213845023,-500.0,0.00029863,2]
[314349387,1708213845032,-4384.1,0.00029863,2]
[314349388,1708213845041,-500.0,0.00029863,2]
[314349389,1708213845050,-562.39804003,0.00029863,2]
[314349390,1708213845062,-764.56,0.00029863,2]
[314349391,1708213845071,-2339.91,0.00029863,2]
[314349392,1708213845080,-2424.82,0.00029863,2]
[314349393,1708213845089,-814.05,0.00029863,2]
[314349394,1708213845098,-4438.86,0.00029863,2]
[314349395,1708213845107,-851.8,0.00029863,2]
[314349396,1708213845116,-500.0,0.00029863,2]
[314349397,1708213845126,-500.0,0.00029863,2]
[314349398,1708213845135,-500.0,0.00029863,2]
[314349399,1708213845144,-500.0,0.00029863,2]
[314349400,1708213845153,-662.68,0.00029863,2]
[314349401,1708213845162,-542.42,0.00029863,2]
[314349402,1708213845171,-500.0,0.00029863,2]
[314349403,1708213845181,-2884.08,0.00029863,2]
[314349404,1708213845190,-3897.83,0.00029863,2]
[314349405,1708213845199,-321.17151337,0.00029886,2]
[314349406,1708213845208,-2755.17,0.00029999,2]
[314349407,1708213845217,-2755.17,0.00029999,2]
[314349408,1708213845226,-2755.17,0.00029999,2]
[314349409,1708213845235,-2755.17,0.00029999,2]
[314349410,1708213845244,-2755.17,0.00029999,2]
[314349411,1708213845253,-2755.17,0.00029999,2]
[314349412,1708213845262,-2755.17,0.00029999,2]
[314349413,1708213845273,-2755.17,0.00029999,2]
[314349414,1708213845282,-2755.17,0.00029999,2]
[314349415,1708213845291,-2755.23,0.00029999,2]
[314349416,1708213845301,-41243.5633733,0.0003,7]
[314349420,1708213845524,-500.0,0.00027397,2]
[314349422,1708213845534,-767.94902668,0.0003,7]
[314349423,1708213845562,-0.00556512,0.0003,7]
[314349424,1708213845616,-201.97528207,0.0003,7]
[314349425,1708213845628,-2105.99456091,0.0003,7]
[314349426,1708213845946,-1000.0,0.00027397,2]
[314349427,1708213845956,-2182.334,0.0003,7]
[314349428,1708214058716,600.0,0.00012,7]
[314349431,1708214421508,5282.9413752,0.00012,2]
[314349432,1708214435507,5283.03898152,0.00012,2]
[314349433,1708214809934,154.92253873,0.00018039,2]
[314349437,1708214988451,155.12394705,0.00017949,2]
[314349470,1708215032062,-273.54659754,0.00022495,2]
[314349472,1708215032074,-3558.66152589,0.00022495,2]
[314349474,1708215032083,-961.59096695,0.00022496,3]
[314349476,1708215032093,-155.0294556,0.000225,2]
[314349478,1708215032102,-166.7947754,0.00024658,2]
[314349480,1708215032111,-24900.0,0.00024847,2]
[314349482,1708215032120,-166.65831569,0.000249,2]
[314349484,1708215032129,-1711.45496282,0.00025,2]
[314349486,1708215032138,-155.0294556,0.00025218,2]
[314349488,1708215032149,-4648.06770963,0.00025221,2]
[314349489,1708215032159,-480.46574434,0.00025221,2]
[314349490,1708215032168,-7910.31800427,0.00025221,2]
[314349491,1708215032178,-155.25057701,0.00027197,2]
[314349492,1708215032187,-2319.21,0.00027287,3]
[314349493,1708215032196,-1932.68,0.00027287,3]
[314349494,1708215032205,-1610.57,0.00027287,3]
[314349495,1708215032214,-33938.85509953,0.00027297,2]
[314349496,1708215032223,-1206.39755772,0.00027306,2]
[314349497,1708215032233,-241.27951154,0.00027306,2]
[314349498,1708215032242,-326.32816516,0.00027306,2]
[314349499,1708215032252,-3193.90244101,0.00027306,2]
[314349705,1708215038034,-14.51513316,0.00027306,2]
[314349707,1708215038044,-157.94,0.00027373,3]
[314349709,1708215038053,-473.85,0.00027373,3]
[314349711,1708215038063,-10206.43322685,0.00027383,5]
[314349715,1708215038090,-19473.89830016,0.00027383,5]
[314349716,1708215038099,-631.78,0.00027387,3]
[314349718,1708215038108,-315.89,0.00027387,3]
[314349719,1708215038118,-1342.14,0.00027387,3]
[314349720,1708215038127,-650.0,0.00027396,2]
[314349721,1708215038136,-275.31615073,0.00027396,2]
[314349722,1708215038145,-503.08584136,0.00027397,2]
[314349723,1708215038155,-500.0,0.00027397,2]
[314349724,1708215038167,-500.0,0.00027397,2]
[314349725,1708215038176,-500.0,0.00027397,2]
[314349726,1708215038185,-161.19172874,0.00027397,2]
[314349727,1708215038194,-632.87,0.00027397,2]
[314349728,1708215038203,-500.0,0.00027397,2]
[314349729,1708215038213,-500.0,0.00027397,2]
[314349730,1708215038222,-500.0,0.00027397,2]
[314349731,1708215038231,-500.0,0.00027397,2]
[314349732,1708215038242,-500.0,0.00027397,2]
[314349733,1708215038252,-500.0,0.00027397,2]
[314349734,1708215038261,-500.0,0.00027397,2]
[314349735,1708215038270,-500.33093344,0.00027397,2]
[314349736,1708215038279,-500.0,0.00027397,2]
[314349737,1708215038288,-500.0,0.00027397,2]
[314349738,1708215038297,-500.0,0.00027397,2]
[314349739,1708215038306,-500.0,0.00027397,2]
[314349740,1708215038315,-635.02766311,0.00027397,2]
[314349741,1708215038324,-343.62807545,0.00027397,2]
[314349742,1708215038333,-501.8497782,0.00027397,2]
[314349743,1708215038342,-500.0,0.00027397,2]
[314349744,1708215038352,-500.0,0.00027397,2]
[314349745,1708215038361,-500.0,0.00027397,2]
[314349746,1708215038372,-507.53183783,0.00027397,2]
[314349747,1708215038381,-500.0,0.00027397,2]
[314349748,1708215038391,-500.0,0.00027397,2]
[314349749,1708215038401,-500.0,0.00027397,2]
[314349750,1708215038410,-416.38756066,0.00027397,2]
[314349751,1708215038421,-504.0187755,0.00027397,2]
[314349752,1708215038430,-537.64,0.00027397,2]
[314349753,1708215038439,-500.0,0.00027397,2]
[314349754,1708215038448,-500.0,0.00027397,2]
[314349755,1708215038458,-500.0,0.00027397,2]
[314349756,1708215038467,-500.0,0.00027397,2]
[314349757,1708215038476,-647.56,0.00027397,2]
[314349758,1708215038485,-500.0,0.00027397,2]
[314349759,1708215038494,-500.49656635,0.00027397,2]
[314349760,1708215038503,-500.0,0.00027397,2]
[314349761,1708215038513,-500.0,0.00027397,2]
[314349762,1708215038522,-500.0,0.00027397,2]
[314349763,1708215038531,-155.0,0.00027397,2]
[314349764,1708215038540,-558.62,0.00027397,2]
[314349765,1708215038550,-500.0,0.00027397,2]
[314349766,1708215038559,-500.0,0.00027397,2]
[314349767,1708215038568,-500.0,0.00027397,2]
[314349768,1708215038578,-264.42650796,0.00027397,2]
[314349769,1708215038587,-500.0,0.00027397,2]
[314349770,1708215038597,-500.0,0.00027397,2]
[314349771,1708215038607,-500.0,0.00027397,2]
[314349772,1708215038616,-500.0,0.00027397,2]
[314349773,1708215038625,-500.0,0.00027397,2]
[314349774,1708215038634,-500.29992476,0.00027397,2]
[314349775,1708215038644,-500.0,0.00027397,2]
[314349776,1708215038653,-500.0,0.00027397,2]
[314349777,1708215038662,-371.13100276,0.00027397,2]
[314349778,1708215038671,-509.33952143,0.00027397,2]
[314349779,1708215038681,-500.0,0.00027397,2]
[314349780,1708215038691,-703.26,0.00027397,2]
[314349781,1708215038700,-500.0,0.00027397,2]
[314349782,1708215038795,-500.0,0.00027397,2]
[314349783,1708215038812,-500.0,0.00027397,2]
[314349784,1708215038822,-500.0,0.00027397,2]
[314349785,1708215038832,-500.0,0.00027397,2]
[314349786,1708215038841,-700.85,0.00027397,2]
[314349787,1708215038851,-4018.76,0.00027397,2]
[314349788,1708215038861,-501.37513944,0.00027397,2]
[314349789,1708215038871,-504.07309495,0.00027397,2]
[314349790,1708215038881,-500.0,0.00027397,2]
[314349791,1708215038891,-500.0,0.00027397,2]
[314349792,1708215038901,-500.0,0.00027397,2]
[314349793,1708215038911,-500.0,0.00027397,2]
[314349794,1708215038920,-3573.01,0.00027397,2]
[314349795,1708215038929,-2144.91,0.00027397,2]
[314349796,1708215038939,-500.0,0.00027397,2]
[314349797,1708215038949,-4068.96,0.00027397,2]
[314349798,1708215038959,-500.0,0.00027397,2]
[314349799,1708215038969,-541.15284659,0.00027397,2]
[314349800,1708215038978,-2222.75,0.00027397,2]
[314349801,1708215038987,-820.03,0.00027397,2]
[314349802,1708215038997,-2189.28,0.00027397,2]
[314349803,1708215039006,-500.0,0.00027397,2]
[314349804,1708215039016,-746.21,0.00027397,2]
[314349805,1708215039025,-636.25,0.00027397,2]
[314349806,1708215039034,-500.0,0.00027397,2]
[314349807,1708215039045,-500.0,0.00027397,2]
[314349808,1708215039055,-500.0,0.00027397,2]
[314349809,1708215039064,-469.50533681,0.00027397,2]
[314349810,1708215039073,-500.0,0.00027397,2]
[314349811,1708215039082,-500.0,0.00027397,2]
[314349812,1708215039092,-500.0,0.00027397,2]
[314349813,1708215039101,-507.25023719,0.00027397,2]
[314349814,1708215039110,-500.0,0.00027397,2]
[314349815,1708215039120,-500.0,0.00027397,2]
[314349816,1708215039129,-500.0,0.00027397,2]
[314349817,1708215039139,-500.0,0.00027397,2]
[314349818,1708215039149,-500.0,0.00027397,2]
[314349819,1708215039160,-500.0,0.00027397,2]
[314349820,1708215039170,-500.0,0.00027397,2]
[314349821,1708215039179,-500.0,0.00027397,2]
[314349822,1708215039189,-500.0,0.00027397,2]
[314349823,1708215039198,-500.0,0.00027397,2]
[314349824,1708215039208,-500.0,0.00027397,2]
[314349825,1708215039218,-545.23134524,0.00027397,2]
[314349826,1708215039227,-519.82,0.00027397,2]
[314349827,1708215039237,-500.0,0.00027397,2]
[314349828,1708215039246,-2763.91,0.00027397,2]
[314349829,1708215039257,-500.0,0.00027397,2]
[314349830,1708215039266,-159.88,0.00027671,2]
[314349831,1708215039275,-180.95,0.00027671,2]
[314349832,1708215039285,-500.0,0.00027671,2]
[314349833,1708215039294,-500.0,0.00027671,2]
[314349834,1708215039302,-500.0,0.00027671,2]
[314349835,1708215039312,-500.0,0.00027671,2]
[314349836,1708215039322,-537.64,0.00027671,2]
[314349837,1708215039332,-500.0,0.00027671,2]
[314349838,1708215039342,-500.0,0.00027671,2]